bitfinex/quotes_BTCUSD_20251217
["timestamp","ask_amount","ask_price","bid_price","bid_amount"]
[1765934672172,0.01804,87902.0,87901.0,0.23586]
[1765934673181,0.01904,87902.0,87901.0,0.23586]
[1765934673586,0.02004,87902.0,87901.0,0.23586]
[1765934673756,0.01137656,87900.0,87891.0,0.22755451]
[1765934673964,0.01137747,87893.0,87891.0,0.1136]
[1765934674204,0.01137747,87893.0,87891.0,0.18464]
[1765934674603,0.01137708,87896.0,87892.0,0.08241759]
[1765934674809,0.01137721,87895.0,87894.0,0.04514]
[1765934675119,0.23891122,87899.0,87895.0,0.01137721]
[1765934675262,0.23891122,87899.0,87898.0,0.10545]
[1765934675470,0.00161287,87900.0,87899.0,0.11618]
[1765934676085,0.00261287,87900.0,87899.0,0.11618]
[1765934676495,0.00161287,87900.0,87899.0,0.11618]
[1765934676884,0.00261287,87900.0,87899.0,0.11618]
[1765934677620,0.00261287,87900.0,87899.0,0.04514]
[1765934678031,0.00361287,87900.0,87899.0,0.15874]
[1765934679859,0.00361287,87900.0,87899.0,0.23128]
[1765934680441,0.00361287,87900.0,87899.0,0.15874]
[1765934682518,0.00361287,87900.0,87899.0,0.23128]
[1765934683741,0.00361287,87900.0,87899.0,0.1136]
[1765934684528,0.22753387,87899.0,87898.0,0.03441]
[1765934685088,0.22753387,87899.0,87898.0,0.10695]
[1765934685289,0.22753387,87899.0,87898.0,0.1537]
[1765934685856,0.22753387,87899.0,87896.0,0.1494]
[1765934685857,0.22753879,87898.0,87896.0,0.1494]
[1765934687993,0.22853879,87898.0,87896.0,0.1494]
[1765934689867,0.2275494,87893.0,87892.0,0.22194]
[1765934690041,0.2275494,87893.0,87892.0,0.33548081]
[1765934690453,0.2275494,87893.0,87892.0,0.1494]
[1765934691294,0.2275494,87893.0,87892.0,0.1514]
[1765934692153,0.2275494,87893.0,87892.0,0.1504]
[1765934693448,0.2275494,87893.0,87892.0,0.1494]
[1765934694493,0.2416694,87893.0,87892.0,0.1494]
[1765934694942,0.3099094,87893.0,87892.0,0.1494]
[1765934695344,0.2416694,87893.0,87892.0,0.1494]
[1765934695729,0.23894146,87888.0,87885.0,0.07254]
[1765934695926,0.24556666,87887.0,87885.0,0.07254]
[1765934696125,0.24556666,87887.0,87883.0,0.16077876]
[1765934696126,0.018,87887.0,87886.0,0.11929]
[1765934696870,0.24556717,87887.0,87885.0,0.001]
[1765934697068,0.24556717,87887.0,87886.0,0.07254]
[1765934697477,0.24556717,87887.0,87886.0,0.07354]
[1765934697671,0.24556717,87887.0,87886.0,0.001]
[1765934697869,0.23894811,87886.0,87883.0,0.1494]
[1765934698192,0.018,87887.0,87886.0,0.12029]
[1765934698701,0.018,87887.0,87886.0,0.11929]
[1765934699410,0.018,87887.0,87884.0,0.1494]
[1765934699550,0.22756753,87886.0,87884.0,0.1494]
[1765934699959,0.02937824,87887.0,87884.0,0.1494]
[1765934700363,0.22756753,87886.0,87884.0,0.1494]
[1765934700558,0.00408321,87885.0,87884.0,0.1494]
[1765934700864,0.00408321,87885.0,87884.0,0.1504]
[1765934701379,0.00408321,87885.0,87884.0,0.1514]
[1765934701594,0.00408321,87885.0,87884.0,0.002]
[1765934702021,0.00408321,87885.0,87884.0,0.001]
[1765934702230,0.00408321,87885.0,87884.0,0.12129]
[1765934702457,0.22756753,87886.0,87884.0,0.002]
[1765934702633,0.00408321,87885.0,87884.0,0.002]
[1765934702834,0.00408321,87885.0,87884.0,0.001]
[1765934703449,0.02937824,87887.0,87885.0,0.07254]
[1765934703450,0.018,87887.0,87885.0,0.07254]
[1765934703611,0.018,87887.0,87886.0,0.18608081]
[1765934703830,0.018,87887.0,87886.0,0.23283081]
[1765934704638,0.01137721,87895.0,87894.0,0.03539]
[1765934704931,0.25692143,87895.0,87894.0,0.03539]
[1765934705130,0.01137759,87892.0,87889.0,0.19541879]
[1765934705345,0.25692143,87895.0,87890.0,0.01137785]
[1765934705585,0.22754961,87893.0,87889.0,0.18404081]
[1765934705761,0.22754961,87893.0,87889.0,0.19541879]
[1765934705968,0.01137759,87892.0,87889.0,0.19541879]
[1765934706408,0.23893169,87892.0,87889.0,0.11354081]
[1765934707356,0.02937721,87895.0,87891.0,0.22755327]
[1765934707956,0.01137734,87894.0,87890.0,0.01137785]
[1765934708164,0.01137747,87893.0,87890.0,0.01137785]
[1765934708362,0.018,87895.0,87892.0,0.01137759]
[1765934708562,0.018,87895.0,87893.0,0.10589]
[1765934708771,0.23891646,87897.0,87894.0,0.0705]
[1765934709026,0.23891646,87897.0,87896.0,0.11354081]
[1765934709444,0.22754626,87895.0,87893.0,0.14893081]
[1765934709797,0.018,87894.0,87893.0,0.14893081]
[1765934709978,0.01137811,87888.0,87887.0,0.11354081]
[1765934710183,0.23894046,87888.0,87885.0,0.26294081]
[1765934710597,0.22756667,87887.0,87885.0,0.26294081]
[1765934711008,0.01137811,87888.0,87885.0,0.26294081]
[1765934711414,0.23894235,87888.0,87885.0,0.26394081]
[1765934711613,0.22756669,87887.0,87885.0,0.1504]
[1765934711875,0.23894235,87888.0,87885.0,0.1504]
[1765934712381,0.23894235,87888.0,87887.0,0.001]
[1765934712512,0.23894235,87888.0,87885.0,0.1617785]
[1765934712710,0.23894235,87888.0,87885.0,0.2322785]
[1765934712936,0.23894235,87888.0,87885.0,0.2332785]
[1765934713112,0.23894235,87888.0,87885.0,0.2322785]
[1765934713315,0.23894235,87888.0,87885.0,0.2312785]
[1765934713514,0.23894235,87888.0,87887.0,0.001]
[1765934713717,0.01137785,87890.0,87887.0,0.01137824]
[1765934713922,0.22756405,87888.0,87886.0,0.1494]
[1765934714908,0.22756405,87888.0,87887.0,0.001]
[1765934715565,0.01137798,87889.0,87887.0,0.001]
[1765934715767,0.23894007,87889.0,87887.0,0.002]
[1765934715970,0.01137772,87891.0,87887.0,0.0725]
[1765934716206,0.01137772,87891.0,87887.0,0.0715]
[1765934716411,0.018,87894.0,87891.0,0.01137772]
[1765934716673,0.30207591,87905.0,87899.0,0.22875081]
[1765934716880,0.01137539,87909.0,87908.0,0.22875081]
[1765934717290,0.02937539,87909.0,87908.0,0.11354081]
[1765934717502,0.02937539,87909.0,87907.0,0.03539]
[1765934717736,0.02937539,87909.0,87907.0,0.10589]
[1765934718118,0.22751057,87908.0,87907.0,0.10589]
[1765934718334,0.03137539,87909.0,87907.0,0.03539]
[1765934718672,0.25888538,87909.0,87907.0,0.03539]
[1765934719174,0.25988538,87909.0,87907.0,0.03539]
[1765934719385,0.25788538,87909.0,87907.0,0.03539]
[1765934719602,0.25788538,87909.0,87901.0,0.34106913]
[1765934719603,0.01137604,87904.0,87901.0,0.01137643]
[1765934720029,0.01137604,87904.0,87901.0,0.08187643]
[1765934720196,0.01137578,87906.0,87904.0,0.11354081]
[1765934720594,0.01137565,87907.0,87904.0,0.11354081]
[1765934720915,0.01137565,87907.0,87904.0,0.18404081]
[1765934721554,0.23889086,87907.0,87904.0,0.11354081]
[1765934722756,0.22751834,87905.0,87904.0,0.11354081]
[1765934724054,0.23889086,87907.0,87904.0,0.11354081]
[1765934724384,0.23887646,87912.0,87900.0,0.34479588]
[1765934724385,0.01137501,87912.0,87911.0,0.04471]
[1765934724585,0.018,87906.0,87902.0,0.22752581]
[1765934724719,0.018,87906.0,87903.0,0.0705]
[1765934724925,0.02937578,87906.0,87905.0,0.11354081]
[1765934726385,0.018,87906.0,87905.0,0.22875081]
[1765934728081,0.018,87906.0,87905.0,0.15825081]
[1765934728657,0.018,87906.0,87905.0,0.11354081]
[1765934729138,0.018,87906.0,87905.0,0.22875081]
[1765934729416,0.018,87906.0,87905.0,0.11354081]
[1765934729645,0.2275261,87902.0,87901.0,0.11354081]
[1765934729768,0.01137643,87901.0,87897.0,0.11354081]
[1765934729967,0.22753387,87899.0,87897.0,0.11354081]
[1765934730587,0.22753387,87899.0,87897.0,0.18404081]
[1765934730794,0.22753387,87899.0,87894.0,0.1494]
[1765934730795,0.01137695,87897.0,87894.0,0.1494]
[1765934730995,0.22754164,87896.0,87894.0,0.1494]
[1765934732030,0.22754164,87896.0,87894.0,0.1504]
[1765934732234,0.22754164,87896.0,87894.0,0.1494]
[1765934732605,0.22754164,87896.0,87894.0,0.1504]
[1765934733052,0.22754164,87896.0,87894.0,0.1514]
[1765934733266,0.01137695,87897.0,87894.0,0.2219]
[1765934733476,0.02937656,87900.0,87896.0,0.04471]
[1765934733677,0.02937656,87900.0,87899.0,0.04471]
[1765934733882,0.018,87900.0,87897.0,0.08187695]
[1765934734067,0.018,87900.0,87899.0,0.15825081]
[1765934735527,0.01137604,87904.0,87902.0,0.06717]
[1765934735719,0.018,87903.0,87902.0,0.2946961]
[1765934736063,0.23888629,87908.0,87907.0,0.25731081]
[1765934736237,0.25688629,87908.0,87907.0,0.25731081]
[1765934736761,0.018,87908.0,87907.0,0.19014081]
[1765934736987,0.01137527,87910.0,87908.0,0.18071081]
[1765934737109,0.018,87909.0,87908.0,0.18071081]
[1765934737309,0.018,87909.0,87908.0,0.45065138]
[1765934737553,0.018,87909.0,87908.0,0.22314081]
[1765934738297,0.019,87909.0,87908.0,0.22314081]
[1765934739509,0.02,87909.0,87908.0,0.22314081]
[1765934740192,0.02,87909.0,87908.0,0.15597081]
[1765934740403,0.02,87909.0,87908.0,0.22314081]
[1765934742632,0.002,87909.0,87908.0,0.22314081]
[1765934743630,0.001,87909.0,87908.0,0.22314081]
[1765934744060,0.001,87909.0,87908.0,0.2731592]
[1765934744624,0.018,87922.0,87921.0,0.25731081]
[1765934744860,0.018,87922.0,87921.0,0.48478774]
[1765934745066,0.018,87922.0,87921.0,0.25731081]
[1765934747990,0.018,87922.0,87921.0,0.25831081]
[1765934748449,0.018,87922.0,87921.0,0.25931081]
[1765934750711,0.01433574,87933.0,87929.0,0.06717]
[1765934750924,0.018,87932.0,87930.0,0.07854268]
[1765934751301,0.018,87932.0,87931.0,0.1096]
[1765934751729,0.3087,87932.0,87931.0,0.1096]
[1765934752135,0.3097,87932.0,87931.0,0.1096]
[1765934752297,0.3087,87932.0,87931.0,0.1096]
[1765934752696,0.3097,87932.0,87931.0,0.1096]
[1765934753026,0.3107,87932.0,87931.0,0.1096]
[1765934753221,0.3097,87932.0,87931.0,0.1096]
[1765934754044,0.3087,87932.0,87931.0,0.1096]
[1765934754501,0.3097,87932.0,87931.0,0.1096]
[1765934754677,0.3107,87932.0,87931.0,0.1096]
[1765934754826,0.02,87932.0,87931.0,0.1096]
[1765934755725,0.3107,87932.0,87931.0,0.1096]
[1765934755964,0.02,87932.0,87931.0,0.1096]
[1765934756786,0.24744848,87932.0,87931.0,0.1096]
[1765934759058,0.24744848,87932.0,87931.0,0.04243]
[1765934759197,0.24744848,87932.0,87931.0,0.1096]
[1765934759409,0.24744848,87932.0,87931.0,0.14377]
[1765934760215,0.24744848,87932.0,87931.0,0.0766]
[1765934760416,0.002,87932.0,87931.0,0.0766]
[1765934760629,3.45e-06,87933.0,87932.0,0.22314081]
[1765934760832,3.45e-06,87933.0,87932.0,0.15961839]
[1765934761046,3.45e-06,87933.0,87932.0,0.33408452]
[1765934761246,3.45e-06,87933.0,87932.0,0.2731592]
[1765934761896,3.45e-06,87933.0,87932.0,0.36279273]
[1765934762716,3.45e-06,87933.0,87932.0,0.2761592]
[1765934764182,3.45e-06,87933.0,87932.0,0.2731592]
[1765934764414,0.00100345,87933.0,87932.0,0.2771592]
[1765934764606,0.00100345,87933.0,87932.0,0.2801592]
[1765934764963,3.45e-06,87933.0,87932.0,0.1665592]
[1765934765346,0.00100345,87933.0,87932.0,0.2129692]
[1765934765571,0.00100345,87933.0,87932.0,0.2751292]
[1765934766994,0.00100345,87933.0,87932.0,0.4245292]
[1765934767884,0.00100345,87933.0,87932.0,0.37451081]
[1765934771603,0.00100345,87933.0,87932.0,0.38588194]
[1765934773329,0.00100345,87933.0,87932.0,0.37451081]
[1765934775894,0.00100345,87933.0,87932.0,0.31098839]
[1765934776101,3.45e-06,87933.0,87932.0,0.3991192]
[1765934776326,3.45e-06,87933.0,87932.0,0.4425292]
[1765934777010,0.0004,87941.0,87932.0,0.4425292]
[1765934777011,0.0004,87941.0,87940.0,0.2691292]
[1765934777221,0.0004,87941.0,87940.0,0.47918149]
[1765934777645,0.00064836,87941.0,87940.0,0.47918149]
[1765934777873,0.00064836,87941.0,87940.0,0.71116471]
[1765934778112,0.00064836,87941.0,87940.0,0.65051242]
[1765934778342,0.00164836,87941.0,87940.0,0.65751242]
[1765934780051,0.00164836,87941.0,87940.0,0.71814993]
[1765934780268,0.00164836,87941.0,87940.0,0.71814859]
[1765934781123,0.0004,87952.0,87947.0,0.41405807]
[1765934781328,0.0004,87952.0,87947.0,0.54468112]
[1765934781535,0.00024832,87949.0,87947.0,0.43114031]
[1765934781741,0.00024832,87949.0,87947.0,0.47758049]
[1765934781955,0.00024832,87949.0,87947.0,0.62698049]
[1765934782164,0.00024832,87949.0,87941.0,0.22742456]
[1765934782165,0.22742003,87943.0,87940.0,0.007]
[1765934782380,0.25091807,87941.0,87940.0,0.007]
[1765934782550,0.25091807,87941.0,87940.0,0.003]
[1765934782551,0.56349807,87941.0,87940.0,0.003]
[1765934783410,0.22746659,87925.0,87924.0,0.11354081]
[1765934784629,0.22746659,87925.0,87924.0,0.11454081]
[1765934786690,0.22746642,87926.0,87925.0,0.04341]
[1765934787087,0.22746642,87926.0,87925.0,0.10557]
[1765934788639,0.23883601,87927.0,87925.0,0.10557]
[1765934788761,0.23883601,87927.0,87925.0,0.10757]
[1765934789576,0.23883601,87927.0,87925.0,0.10557]
[1765934790027,0.23883601,87927.0,87925.0,0.10657]
[1765934791314,0.23883601,87927.0,87926.0,0.10557]
[1765934791698,0.018,87928.0,87927.0,0.10557]
[1765934791939,0.018,87928.0,87927.0,0.33303141]
[1765934792149,0.018,87928.0,87927.0,0.10557]
[1765934792560,0.018,87928.0,87926.0,0.001]
[1765934792561,0.01996,87927.0,87926.0,0.001]
[1765934792772,0.01137617,87903.0,87900.0,0.11354081]
[1765934793172,0.01137617,87903.0,87892.0,0.21911081]
[1765934793173,0.22755112,87893.0,87892.0,0.21911081]
[1765934793750,0.22755112,87893.0,87892.0,0.15695081]
[1765934793953,0.01137734,87894.0,87893.0,0.11354081]
[1765934794931,0.22755717,87890.0,87889.0,0.03106]
[1765934795138,0.24555717,87890.0,87889.0,0.14460081]
[1765934796751,0.24555717,87890.0,87889.0,0.03306]
[1765934796914,0.24555717,87890.0,87889.0,0.03506]
[1765934797125,0.24555717,87890.0,87889.0,0.004]
[1765934799242,0.018,87890.0,87889.0,0.004]
[1765934800106,0.018,87890.0,87887.0,0.01137824]
[1765934800107,0.24638969,87862.0,87859.0,0.1494]
[1765934800322,0.24638969,87862.0,87849.0,0.03181]
[1765934800323,0.26600256,87862.0,87855.0,0.11354081]
[1765934800527,0.30352256,87862.0,87848.0,0.11354081]
[1765934800748,0.30352256,87862.0,87848.0,0.1249241]
[1765934800971,0.30352256,87862.0,87848.0,0.11354081]
[1765934801608,0.30352256,87862.0,87849.0,0.22766251]
[1765934801810,0.2907,87863.0,87862.0,0.03979]
[1765934802150,0.2907,87863.0,87862.0,0.21594081]
[1765934802355,0.3087,87863.0,87862.0,0.15333081]
[1765934802682,0.3087,87863.0,87862.0,0.11354081]
[1765934802887,0.018,87863.0,87862.0,0.11354081]
[1765934803737,0.02,87863.0,87862.0,0.11354081]
[1765934804130,0.24579969,87862.0,87861.0,0.00296442]
[1765934804611,0.22762969,87862.0,87861.0,0.00296442]
[1765934805144,0.001,87863.0,87861.0,0.00296442]
[1765934805351,0.001,87863.0,87862.0,0.1024]
[1765934805560,0.019,87863.0,87862.0,0.1024]
[1765934805967,0.018,87863.0,87862.0,0.21594081]
[1765934806379,0.018,87863.0,87862.0,0.15333081]
[1765934806733,0.018,87863.0,87861.0,0.00296442]
[1765934806734,0.22762969,87862.0,87861.0,0.00296442]
[1765934807159,0.019,87863.0,87861.0,0.00296442]
[1765934807528,0.018,87863.0,87862.0,0.03979]
[1765934807731,0.018,87863.0,87862.0,0.1024]
[1765934808580,0.30208122,87864.0,87863.0,0.03979]
[1765934808793,0.32008122,87864.0,87863.0,0.1024]
[1765934810192,0.33164756,87864.0,87863.0,0.1024]
[1765934810826,0.31364756,87864.0,87863.0,0.1024]
[1765934811002,0.33164756,87864.0,87863.0,0.1024]
[1765934812021,0.33164756,87864.0,87863.0,0.03979]
[1765934812218,0.5183271,87863.0,87862.0,0.03181]
[1765934812425,0.23819344,87863.0,87861.0,0.00296442]
[1765934812593,0.01056634,87862.0,87861.0,0.00296442]
[1765934813359,0.01056634,87862.0,87861.0,0.10536442]
[1765934813765,0.01156634,87862.0,87861.0,0.10536442]
[1765934815189,0.01156634,87862.0,87861.0,0.10636442]
[1765934817038,0.01156634,87862.0,87861.0,0.04375442]
[1765934817250,0.01156634,87862.0,87861.0,0.00396442]
[1765934818254,0.01156634,87862.0,87861.0,0.10636442]
[1765934819690,0.01156634,87862.0,87861.0,0.00396442]
[1765934823140,0.01138174,87860.0,87857.0,0.11354081]
[1765934823344,0.22764523,87856.0,87849.0,0.04319316]
[1765934823592,0.01138278,87852.0,87849.0,0.03181]
[1765934823790,0.02194873,87855.0,87850.0,0.1024]
[1765934823791,0.02856634,87851.0,87850.0,0.1024]
[1765934824006,0.02856634,87851.0,87850.0,0.21594081]
[1765934824209,0.02856634,87851.0,87850.0,0.21628282]
[1765934824957,0.02856634,87851.0,87850.0,0.21828282]
[1765934825606,0.02856634,87851.0,87850.0,0.21928282]
[1765934827471,0.04296634,87851.0,87850.0,0.00334201]
[1765934827677,0.23907408,87839.0,87836.0,0.01158485]
[1765934827872,0.02856634,87838.0,87836.0,0.01158485]
[1765934828233,0.01056634,87837.0,87836.0,0.22371566]
[1765934828463,0.02856634,87837.0,87836.0,0.22371566]
[1765934829944,0.01056634,87837.0,87836.0,0.27573405]
[1765934830481,0.01056634,87851.0,87850.0,0.43979159]
[1765934831594,0.01156634,87851.0,87850.0,0.43979159]
[1765934831938,0.01256634,87851.0,87850.0,0.43979159]
[1765934833043,0.002,87851.0,87850.0,0.43979159]
[1765934833195,0.02004,87851.0,87850.0,0.43979159]
[1765934834010,0.01904,87851.0,87850.0,0.43979159]
[1765934834453,0.01904,87851.0,87850.0,0.46988159]
[1765934834861,0.01804,87851.0,87850.0,0.46988159]
[1765934835212,0.01804,87851.0,87850.0,0.62028159]
[1765934839612,0.01138083,87867.0,87863.0,0.17177081]
[1765934839763,0.02867476,87866.0,87863.0,0.17177081]
[1765934839981,0.01067476,87865.0,87863.0,0.11354081]
[1765934840185,0.018,87866.0,87863.0,0.11354081]
[1765934840410,0.01067439,87865.0,87863.0,0.11354081]
[1765934840645,0.02938096,87866.0,87863.0,0.12492216]
[1765934842435,0.03038096,87866.0,87863.0,0.12492216]
[1765934842636,0.25800222,87866.0,87863.0,0.11354081]
[1765934842836,0.01138122,87864.0,87861.0,0.01138161]
[1765934844116,0.01238122,87864.0,87861.0,0.01138161]
[1765934844769,0.01338122,87864.0,87861.0,0.01138161]
[1765934845817,0.01338122,87864.0,87861.0,0.06961161]
[1765934846020,0.01338122,87864.0,87861.0,0.05823]
[1765934846924,0.01338122,87864.0,87863.0,0.09859]
[1765934846925,0.002,87864.0,87863.0,0.09859]
[1765934847325,0.002,87864.0,87863.0,0.21213081]
[1765934847913,0.001,87864.0,87863.0,0.09859]
[1765934848429,0.002,87864.0,87863.0,0.09859]
[1765934848849,0.001,87864.0,87863.0,0.09859]
[1765934849269,0.002,87864.0,87863.0,0.09859]
[1765934849626,0.002,87864.0,87862.0,0.11354081]
[1765934849955,0.002,87864.0,87862.0,0.17177081]
[1765934850537,0.001,87864.0,87862.0,0.17177081]
[1765934850732,0.001,87864.0,87862.0,0.11354081]
[1765934851008,0.22763487,87860.0,87859.0,0.11354081]
[1765934851185,0.22763487,87860.0,87858.0,0.02809]
[1765934851737,0.018,87859.0,87858.0,0.02809]
[1765934853165,0.019,87859.0,87858.0,0.02909]
[1765934853456,0.019,87859.0,87858.0,0.001]
[1765934853663,0.02308321,87859.0,87858.0,0.001]
[1765934854080,0.019,87859.0,87858.0,0.001]
[1765934854288,0.02061287,87859.0,87858.0,0.001]
[1765934855092,0.02469608,87859.0,87858.0,0.001]
[1765934855526,0.03471608,87859.0,87858.0,0.001]
[1765934855730,0.02469608,87859.0,87858.0,0.001]
[1765934858234,0.02061287,87859.0,87858.0,0.001]
[1765934858415,0.02061287,87859.0,87858.0,0.09577]
[1765934858633,0.02061287,87859.0,87858.0,0.20931081]
[1765934858832,0.001,87859.0,87858.0,0.20931081]
[1765934859041,0.019,87859.0,87858.0,0.20931081]
[1765934861709,0.001,87859.0,87858.0,0.35871081]
[1765934861913,0.001,87859.0,87858.0,0.4087292]
[1765934862697,0.001,87859.0,87858.0,0.4077292]
[1765934862882,0.018,87884.0,87883.0,0.4648361]
[1765934863277,0.018,87884.0,87883.0,0.23726081]
[1765934863478,0.018,87884.0,87883.0,0.4648361]
[1765934863688,0.018,87884.0,87883.0,0.23726081]
[1765934864444,0.018,87884.0,87883.0,0.12372]
[1765934867854,0.018,87884.0,87883.0,0.06523]
[1765934868057,0.018,87884.0,87883.0,0.12372]
[1765934873346,0.018,87884.0,87883.0,0.06523]
[1765934877814,0.018,87884.0,87883.0,0.12372]
[1765934881185,0.22758047,87881.0,87880.0,0.1494]
[1765934881640,0.23895405,87883.0,87882.0,0.03628]
[1765934881859,0.01137876,87883.0,87882.0,0.09477]
[1765934882213,0.018,87884.0,87883.0,0.12461]
[1765934890114,0.018,87884.0,87883.0,0.06612]
[1765934891978,0.018,87884.0,87883.0,0.1206]
[1765934893163,0.018,87884.0,87883.0,0.02984]
[1765934893367,0.018,87884.0,87883.0,0.08432]
[1765934893757,0.018,87884.0,87883.0,0.12174]
[1765934893964,0.018,87884.0,87883.0,0.06726]
[1765934896937,0.018,87884.0,87883.0,0.02984]
[1765934897097,0.23141047,87881.0,87880.0,0.1494]
[1765934897299,0.23685334,87881.0,87880.0,0.1494]
[1765934897702,0.22760876,87871.0,87869.0,0.17453345]
[1765934897930,0.22760876,87871.0,87869.0,0.11354081]
[1765934898139,0.22760876,87871.0,87869.0,0.16802081]
[1765934898369,0.24560876,87871.0,87869.0,0.16802081]
[1765934899042,0.22761414,87868.0,87867.0,0.06099264]
[1765934899256,0.22761932,87866.0,87865.0,0.1494]
[1765934900395,0.23899484,87868.0,87865.0,0.1494]
[1765934900719,0.2276189,87867.0,87865.0,0.1494]
[1765934900920,0.2276189,87867.0,87865.0,0.20388]
[1765934901202,0.01138044,87870.0,87866.0,0.22761932]
[1765934901402,0.23899407,87869.0,87867.0,0.05448]
[1765934902027,0.0113807,87868.0,87865.0,0.16278109]
[1765934902201,0.22761673,87867.0,87865.0,0.20588]
[1765934902401,0.01138057,87869.0,87866.0,0.05448]
[1765934902611,0.23899462,87869.0,87866.0,0.05448]
[1765934902849,0.01138057,87869.0,87866.0,0.05448]
[1765934903050,0.22761414,87868.0,87866.0,0.05448]
[1765934903251,0.23899436,87869.0,87866.0,0.05448]
[1765934903452,0.01138044,87870.0,87867.0,0.22861651]
[1765934903698,0.22759295,87877.0,87875.0,0.05448]
[1765934903922,0.018,87876.0,87875.0,0.05448]
[1765934904127,0.018,87876.0,87875.0,0.0919]
[1765934904329,0.22759601,87875.0,87874.0,0.02843]
[1765934904729,0.22760489,87872.0,87870.0,0.05448]
[1765934904933,0.22760489,87872.0,87871.0,0.11354081]
[1765934905134,0.22760489,87872.0,87870.0,0.11354081]
[1765934905272,0.23899,87870.0,87867.0,0.21526083]
[1765934905715,0.23899,87870.0,87867.0,0.20388]
[1765934905938,0.22761348,87869.0,87867.0,0.20388]
[1765934906542,0.23899,87870.0,87867.0,0.21526083]
[1765934906874,0.01138044,87870.0,87867.0,0.21526083]
[1765934907078,0.01138044,87870.0,87868.0,0.05448]
[1765934907480,0.23899183,87870.0,87868.0,0.05448]
[1765934909494,0.23899183,87870.0,87868.0,0.20488]
[1765934910720,0.23899147,87870.0,87868.0,0.20488]
[1765934910929,0.23899147,87870.0,87868.0,0.1504]
[1765934911289,0.23899147,87870.0,87868.0,0.20488]
[1765934911991,0.01138044,87870.0,87868.0,0.20488]
[1765934912191,0.22760823,87871.0,87868.0,0.20488]
[1765934912414,0.23898854,87871.0,87868.0,0.20488]
[1765934912977,0.23898854,87871.0,87868.0,0.20388]
[1765934913363,0.23898854,87871.0,87868.0,0.20488]
[1765934913958,0.01138031,87871.0,87868.0,0.1504]
[1765934914131,0.01138018,87872.0,87869.0,0.29104212]
[1765934914355,0.0113798,87875.0,87870.0,0.29103697]
[1765934914527,0.0113798,87875.0,87871.0,0.22760435]
[1765934915676,0.0113798,87875.0,87871.0,0.23898466]
[1765934916243,0.018,87876.0,87874.0,0.05382]
[1765934917064,0.24559536,87876.0,87874.0,0.05382]
[1765934917266,0.24559536,87876.0,87871.0,0.07908]
[1765934917267,0.01137993,87874.0,87871.0,0.07908]
[1765934917470,0.23898003,87874.0,87871.0,0.07908]
[1765934920051,0.23898003,87874.0,87872.0,0.11354081]
[1765934920052,0.22760119,87873.0,87872.0,0.11354081]
[1765934920384,0.22760896,87870.0,87869.0,0.26294081]
[1765934921022,0.02937993,87874.0,87869.0,0.26294081]
[1765934921225,0.02937993,87874.0,87869.0,0.31676081]
[1765934921440,0.02937993,87874.0,87870.0,0.05382]
[1765934921678,0.018,87874.0,87871.0,0.29280668]
[1765934921870,0.018,87874.0,87871.0,0.06520031]
[1765934922009,0.018,87874.0,87869.0,0.50193111]
[1765934922010,0.02937993,87874.0,87869.0,0.32814138]
[1765934922746,0.23898595,87872.0,87869.0,0.26294081]
[1765934922952,0.23898595,87872.0,87869.0,0.31676081]
[1765934923150,0.22760829,87871.0,87869.0,0.31676081]
[1765934924017,0.22760829,87871.0,87869.0,0.31776081]
[1765934925274,0.22760829,87871.0,87869.0,0.31676081]
[1765934925649,0.01138018,87872.0,87869.0,0.31776081]
[1765934926033,0.23898574,87872.0,87869.0,0.31776081]
[1765934926563,0.23898574,87872.0,87869.0,0.31676081]
[1765934926769,0.23898574,87872.0,87869.0,0.31776081]
[1765934927517,0.22760872,87871.0,87869.0,0.31776081]
[1765934928351,0.22760872,87871.0,87869.0,0.31676081]
[1765934928508,0.22760872,87871.0,87869.0,0.20322]
[1765934928722,0.22760872,87871.0,87869.0,0.20422]
[1765934928920,0.01138018,87872.0,87869.0,0.20422]
[1765934929119,0.01138005,87873.0,87870.0,0.06520044]
[1765934929331,0.018,87874.0,87871.0,0.23898418]
[1765934929532,0.018,87874.0,87871.0,0.29280418]
[1765934929733,0.018,87874.0,87871.0,0.31806418]
[1765934930489,0.018,87874.0,87871.0,0.09046031]
[1765934931970,0.018,87874.0,87872.0,0.05382]
[1765934932166,0.02937993,87874.0,87871.0,0.03664031]
[1765934932619,0.25698078,87874.0,87871.0,0.02526]
[1765934933467,0.02937993,87874.0,87871.0,0.03664031]
[1765934933685,0.018,87874.0,87873.0,0.08988]
[1765934934763,0.22760119,87873.0,87870.0,0.11354081]
[1765934934971,0.01138031,87871.0,87870.0,0.11354081]
[1765934935369,0.01138031,87871.0,87870.0,0.16736081]
[1765934936814,0.01138031,87871.0,87870.0,0.16836081]
[1765934937625,0.01138031,87871.0,87870.0,0.11454081]
[1765934938738,0.01138031,87871.0,87870.0,0.001]
[1765934940230,0.09009561,87871.0,87870.0,0.001]
[1765934940402,0.01546352,87871.0,87870.0,0.001]
[1765934941154,0.01138083,87867.0,87864.0,0.17453345]
[1765934941319,0.01138031,87871.0,87867.0,0.23899542]
[1765934941521,0.01138031,87871.0,87867.0,0.29281542]
[1765934941943,0.01138044,87870.0,87867.0,0.06520083]
[1765934942117,0.0113798,87875.0,87868.0,0.0113807]
[1765934942317,0.0113798,87875.0,87867.0,0.06520083]
[1765934942547,0.22760745,87871.0,87867.0,0.06520083]
[1765934942752,0.01138044,87870.0,87867.0,0.06520083]
[1765934943326,0.01138044,87870.0,87867.0,0.05382]
[1765934943463,0.23899145,87870.0,87867.0,0.05382]
[1765934943670,0.01138044,87870.0,87867.0,0.29281618]
[1765934943891,0.23898776,87871.0,87867.0,0.29281618]
[1765934944095,0.01138031,87871.0,87868.0,0.04944]
[1765934944529,0.22758038,87882.0,87880.0,0.04944]
[1765934944746,0.24719533,87881.0,87880.0,0.04944]
[1765934944964,0.24719533,87881.0,87877.0,0.02548]
[1765934944965,0.23896422,87880.0,87878.0,0.04944]
[1765934945188,0.23896422,87880.0,87877.0,0.02548]
[1765934945354,0.22758823,87879.0,87877.0,0.02548]
[1765934947163,0.22858823,87879.0,87877.0,0.02548]
[1765934947817,0.22958823,87879.0,87877.0,0.02548]
[1765934949113,0.002,87879.0,87877.0,0.02548]
[1765934949753,0.002,87879.0,87877.0,0.07492]